bitfinex/quotes_BTCUSD_20240101
["timestamp","ask_amount","ask_price","bid_price","bid_amount"]
[1704091469442,0.00626854,42410.0,42408.0,0.1945]
[1704091469660,0.1,42413.0,42407.0,0.18480611]
[1704091469867,0.1,42413.0,42409.0,0.04]
[1704091470076,0.00626719,42412.0,42409.0,0.04]
[1704091471373,0.00626719,42412.0,42409.0,0.042]
[1704091471578,0.00626719,42412.0,42409.0,0.044]
[1704091472017,0.00626719,42412.0,42409.0,0.042]
[1704091472500,0.00626719,42412.0,42409.0,0.045]
[1704091472743,0.00626719,42412.0,42409.0,0.051]
[1704091472953,0.00626719,42412.0,42409.0,0.045]
[1704091473202,0.00626719,42412.0,42409.0,0.047]
[1704091473660,0.00626719,42412.0,42409.0,0.04]
[1704091473882,0.00626719,42412.0,42409.0,0.044]
[1704091474337,0.00626719,42412.0,42409.0,0.043]
[1704091474797,0.00626719,42412.0,42409.0,0.045]
[1704091488940,0.14567967,42411.0,42409.0,0.045]
[1704091489365,0.00583277,42410.0,42409.0,0.045]
[1704091489994,0.00583277,42410.0,42409.0,0.04]
[1704091490205,0.00583277,42410.0,42409.0,0.043]
[1704091490389,0.00583277,42410.0,42409.0,0.048]
[1704091490616,0.00583277,42410.0,42409.0,0.04]
[1704091491051,0.00583277,42410.0,42409.0,0.051]
[1704091494988,0.00583277,42410.0,42409.0,0.011]
[1704091497304,0.1899,42412.0,42409.0,0.011]
[1704091497503,0.1899,42412.0,42411.0,0.1]
[1704091497847,0.23509769,42413.0,42411.0,0.1]
[1704091499989,0.23509769,42413.0,42411.0,0.102]
[1704091500504,0.23509769,42413.0,42411.0,0.103]
[1704091501351,0.00590497,42412.0,42411.0,0.103]
[1704091502417,0.00590497,42412.0,42411.0,0.1]
[1704091502642,0.00590497,42412.0,42411.0,0.103]
[1704091502865,0.00590497,42412.0,42411.0,0.105]
[1704091506002,0.11727957,42412.0,42411.0,0.105]
[1704091507280,0.1113746,42412.0,42411.0,0.105]
[1704091507456,0.11725077,42412.0,42411.0,0.105]
[1704091508166,0.11725077,42412.0,42411.0,0.103]
[1704091508367,0.11725077,42412.0,42411.0,0.1]
[1704091508577,0.11825077,42412.0,42411.0,0.1]
[1704091508782,0.11925077,42412.0,42411.0,0.1]
[1704091508998,0.11725077,42412.0,42411.0,0.1]
[1704091509418,0.11825077,42412.0,42411.0,0.1]
[1704091521643,0.11725077,42412.0,42411.0,0.1]
[1704091522075,0.11825077,42412.0,42411.0,0.1]
[1704091522493,0.11725077,42412.0,42411.0,0.1]
[1704091523823,0.11825077,42412.0,42411.0,0.102]
[1704091524260,0.11725077,42412.0,42411.0,0.102]
[1704091524385,0.11725077,42412.0,42411.0,0.103]
[1704091524769,0.01725077,42412.0,42411.0,0.003]
[1704091530692,0.11725077,42412.0,42411.0,0.003]
[1704091531613,0.11725077,42412.0,42404.0,0.1876]
[1704091531614,0.0113746,42409.0,42404.0,0.1876]
[1704091531830,0.0113746,42409.0,42402.0,0.05618071]
[1704091532043,0.186,42408.0,42402.0,0.55138071]
[1704091532257,0.19171394,42408.0,42402.0,0.55138071]
[1704091532687,0.186,42408.0,42402.0,0.55138071]
[1704091533320,0.00570757,42407.0,42402.0,0.55138071]
[1704091533543,0.00570757,42407.0,42402.0,0.5002]
[1704091534008,0.00570757,42407.0,42404.0,0.001]
[1704091534440,0.00570757,42407.0,42402.0,0.4952]
[1704091534861,0.00570757,42407.0,42402.0,0.5062]
[1704091536344,0.00570757,42407.0,42402.0,0.5002]
[1704091537048,0.00570757,42407.0,42404.0,0.005]
[1704091537668,0.17937914,42407.0,42402.0,0.5002]
[1704091537882,0.17937914,42407.0,42402.0,0.5012]
[1704091538086,0.17367157,42407.0,42404.0,0.003]
[1704091538508,0.00570121,42406.0,42404.0,0.008]
[1704091538724,0.00570121,42406.0,42404.0,0.003]
[1704091539343,0.00570121,42406.0,42402.0,0.4952]
[1704091539758,0.17367157,42407.0,42402.0,0.4952]
[1704091539995,0.17367157,42407.0,42402.0,0.5062]
[1704091540480,0.17367157,42407.0,42402.0,0.4952]
[1704091540728,0.17367157,42407.0,42402.0,0.5092]
[1704091541155,0.17367157,42407.0,42402.0,0.5032]
[1704091541365,0.17367157,42407.0,42402.0,0.4952]
[1704091541829,0.17367157,42407.0,42402.0,0.5012]
[1704091542640,0.186,42408.0,42402.0,0.5062]
[1704091543111,0.35556979,42408.0,42402.0,0.5062]
[1704091543339,0.186,42408.0,42402.0,0.55792]
[1704091543563,0.00538184,42407.0,42402.0,0.4952]
[1704091543829,0.186,42408.0,42402.0,0.5002]
[1704091544039,0.00538184,42406.0,42402.0,0.55938071]
[1704091544252,0.186,42408.0,42402.0,0.5032]
[1704091544465,0.00538184,42407.0,42402.0,0.5032]
[1704091544668,0.00538184,42407.0,42402.0,0.4982]
[1704091544876,0.00538184,42407.0,42402.0,0.5012]
[1704091545081,0.186,42408.0,42402.0,0.5012]
[1704091546100,0.186,42408.0,42402.0,0.5002]
[1704091546306,0.186,42408.0,42402.0,0.5052]
[1704091546506,0.186,42408.0,42402.0,0.5002]
[1704091546923,0.186,42408.0,42402.0,0.5032]
[1704091547578,0.2973746,42408.0,42402.0,0.5032]
[1704091548073,0.00539699,42407.0,42402.0,0.5032]
[1704091548292,0.00539699,42407.0,42402.0,0.308]
[1704091548293,0.11677159,42407.0,42402.0,0.308]
[1704091548502,0.30717159,42407.0,42402.0,0.008]
[1704091548733,0.11677159,42407.0,42402.0,0.008]
[1704091548933,0.11677159,42407.0,42402.0,0.005]
[1704091549168,0.11677159,42407.0,42401.0,0.3]
[1704091549472,0.1904,42406.0,42402.0,0.005]
[1704091549707,0.1904,42406.0,42402.0,0.011]
[1704091549937,0.1904,42406.0,42402.0,0.006]
[1704091550183,0.00539699,42405.0,42402.0,0.006]
[1704091550845,0.00539699,42405.0,42401.0,0.3492]
[1704091550846,0.1904,42406.0,42401.0,0.3462]
[1704091551078,0.00539699,42404.0,42402.0,0.005]
[1704091551537,0.1904,42406.0,42402.0,0.005]
[1704091551769,0.00539699,42403.0,42402.0,0.005]
[1704091552033,0.1904,42406.0,42402.0,0.005]
[1704091552254,0.1904,42406.0,42402.0,0.003]
[1704091552479,0.00539699,42405.0,42402.0,0.006]
[1704091552687,0.00539699,42405.0,42402.0,0.003]
[1704091552908,0.00539699,42405.0,42401.0,0.34542]
[1704091553126,0.00539699,42405.0,42402.0,0.005]
[1704091553330,0.00539699,42405.0,42402.0,0.002]
[1704091553581,0.00539699,42405.0,42402.0,0.005]
[1704091553792,0.00539699,42405.0,42401.0,0.34542]
[1704091554000,0.00539699,42405.0,42401.0,0.34842]
[1704091554216,0.00539699,42405.0,42401.0,0.35342]
[1704091554429,0.1904,42406.0,42401.0,0.35342]
[1704091555087,0.1904,42406.0,42401.0,0.35042]
[1704091555301,0.1904,42406.0,42401.0,0.34542]
[1704091555512,0.1904,42406.0,42402.0,0.003]
[1704091555723,0.1904,42406.0,42402.0,0.008]
[1704091555933,0.1904,42406.0,42401.0,0.34542]
[1704091556156,0.1904,42406.0,42401.0,0.35042]
[1704091556570,0.1904,42406.0,42401.0,0.34742]
[1704091556778,0.1904,42406.0,42402.0,0.003]
[1704091556987,0.1904,42406.0,42402.0,0.002]
[1704091558196,0.1904,42406.0,42401.0,0.34842]
[1704091558403,0.1904,42406.0,42401.0,0.34742]
[1704091558843,0.1904,42406.0,42402.0,0.003]
[1704091559047,0.1904,42406.0,42401.0,0.34742]
[1704091559489,0.1904,42406.0,42401.0,0.35042]
[1704091559735,0.1904,42406.0,42404.0,0.14045177]
[1704091559946,0.008,42419.0,42412.0,0.1886254]
[1704091560157,0.008,42419.0,42414.0,0.05609473]
[1704091560370,0.00504769,42418.0,42415.0,0.05609473]
[1704091560585,0.00504769,42418.0,42415.0,0.10145473]
[1704091561031,0.00504769,42418.0,42416.0,0.11375473]
[1704091561452,0.00504769,42418.0,42417.0,0.04848]
[1704091561900,0.008,42419.0,42416.0,0.05609473]
[1704091562168,0.00476609,42418.0,42416.0,0.04758]
[1704091562389,0.00476609,42418.0,42416.0,0.1986254]
[1704091562652,0.00476609,42418.0,42416.0,0.1886254]
[1704091562889,0.008,42419.0,42416.0,0.1886254]
[1704091563132,0.008,42419.0,42417.0,0.009]
[1704091564885,0.008,42419.0,42416.0,0.2006254]
[1704091565092,0.008,42419.0,42416.0,0.2126254]
[1704091565307,0.008,42419.0,42416.0,0.2006254]
[1704091565516,0.008,42419.0,42416.0,0.1886254]
[1704091565723,0.008,42419.0,42417.0,0.01]
[1704091565940,0.008,42419.0,42417.0,0.009]
[1704091566359,0.008,42419.0,42416.0,0.2006254]
[1704091566566,0.008,42419.0,42416.0,0.1886254]
[1704091566963,0.008,42419.0,42416.0,0.1996254]
[1704091568033,0.008,42419.0,42417.0,0.01]
[1704091568516,0.008,42419.0,42416.0,0.1996254]
[1704091568749,0.008,42419.0,42416.0,0.2116254]
[1704091568986,0.008,42419.0,42416.0,0.1886254]
[1704091569427,0.008,42419.0,42417.0,0.01]
[1704091569641,0.008,42419.0,42416.0,0.1886254]
[1704091569858,0.008,42419.0,42417.0,0.009]
[1704091570282,0.008,42419.0,42417.0,0.1976254]
[1704091570505,0.008,42419.0,42417.0,0.1886254]
[1704091571679,0.008,42419.0,42417.0,0.1986254]
[1704091572720,0.008,42419.0,42417.0,0.2076254]
[1704091578160,0.008,42419.0,42418.0,0.42184251]
[1704091578374,0.008,42419.0,42418.0,0.47644251]
[1704091579495,0.008,42419.0,42418.0,0.49344251]
[1704091579957,0.008,42419.0,42418.0,0.43884251]
[1704091593347,0.008,42419.0,42418.0,0.25021711]
[1704091596056,0.008,42419.0,42418.0,0.017]
[1704091605864,0.008,42419.0,42418.0,0.16613692]
[1704091606087,0.008,42419.0,42418.0,1.01665134]
[1704091606303,0.0195626,42421.0,42420.0,0.1886254]
[1704091606520,0.0195626,42421.0,42420.0,1.28761946]
[1704091606703,0.02625,42430.0,42420.0,1.28761946]
[1704091606704,0.02625,42430.0,42429.0,0.1886254]
[1704091606998,0.02625,42430.0,42429.0,0.57097943]
[1704091607211,0.02625,42430.0,42429.0,0.65245943]
[1704091607637,0.02625,42430.0,42429.0,0.93340702]
[1704091607857,0.02625,42430.0,42429.0,0.79361943]
[1704091608091,0.02625,42430.0,42429.0,0.69245943]
[1704091608306,0.02625,42430.0,42429.0,0.70145943]
[1704091608731,0.02625,42430.0,42429.0,0.78527541]
[1704091609156,0.02625,42430.0,42429.0,0.79327541]
[1704091609613,0.02625,42430.0,42429.0,0.47084251]
[1704091609827,0.02625,42430.0,42429.0,0.53622251]
[1704091610262,0.02625,42430.0,42429.0,0.48084251]
[1704091610477,0.02625,42430.0,42429.0,0.49984251]
[1704091611363,0.02625,42430.0,42429.0,0.55090251]
[1704091611548,0.02625,42430.0,42429.0,0.49984251]
[1704091611975,0.02625,42430.0,42429.0,0.54706251]
[1704091612193,0.02625,42430.0,42429.0,0.49984251]
[1704091612605,0.02625,42430.0,42429.0,0.54976251]
[1704091612825,0.02625,42430.0,42429.0,0.49984251]
[1704091614585,0.02625,42430.0,42429.0,0.55276251]
[1704091614827,0.02625,42430.0,42429.0,0.68804251]
[1704091615035,0.02625,42430.0,42429.0,1.08896251]
[1704091615244,0.02625,42430.0,42429.0,1.14481195]
[1704091616543,0.02625,42430.0,42429.0,1.08896251]
[1704091617407,0.02625,42430.0,42429.0,0.98804251]
[1704091618264,0.02625,42430.0,42429.0,0.88804251]
[1704091619287,0.02625,42430.0,42429.0,0.078]
[1704091619486,0.29620327,42430.0,42429.0,0.078]
[1704091619675,0.30620327,42430.0,42429.0,0.038]
[1704091620091,0.30620327,42430.0,42429.0,0.019]
[1704091620517,0.30620327,42430.0,42429.0,0.027]
[1704091620729,0.1,42426.0,42418.0,0.1886254]
[1704091621147,0.17752456,42425.0,42418.0,0.1886254]
[1704091621970,0.17752456,42425.0,42418.0,0.1916254]
[1704091622402,0.17752456,42425.0,42418.0,0.1886254]
[1704091622629,0.17752456,42425.0,42418.0,0.0936254]
[1704091623046,0.17752456,42425.0,42418.0,0.1986254]
[1704091623260,0.17752456,42425.0,42418.0,0.1936254]
[1704091623466,0.17752456,42425.0,42418.0,0.1996254]
[1704091629700,0.17752456,42425.0,42418.0,0.0996254]
[1704091629906,0.17752456,42425.0,42418.0,0.1996254]
[1704091631352,0.17752456,42425.0,42418.0,0.0996254]
[1704091631977,0.1113746,42424.0,42418.0,0.011]
[1704091632827,0.1113746,42424.0,42418.0,0.005]
[1704091633023,0.1123746,42424.0,42418.0,0.005]
[1704091633220,0.1123746,42424.0,42414.0,0.56499711]
[1704091633450,0.1113746,42424.0,42414.0,0.79821422]
[1704091633647,0.1133746,42424.0,42414.0,0.79821422]
[1704091633848,0.1,42420.0,42414.0,0.56499711]
[1704091634480,0.17373642,42419.0,42414.0,0.56499711]
[1704091635380,0.17373642,42419.0,42414.0,0.56799711]
[1704091635589,0.17373642,42419.0,42414.0,0.003]
[1704091635813,0.17373642,42419.0,42414.0,0.009]
[1704091636450,0.17373642,42419.0,42414.0,0.006]
[1704091636655,0.17373642,42419.0,42414.0,0.005]
[1704091636862,0.17373642,42419.0,42414.0,0.007]
[1704091637269,0.17373642,42419.0,42414.0,0.002]
[1704091637477,0.17373642,42419.0,42414.0,0.003]
[1704091638086,0.17373642,42419.0,42414.0,0.001]
[1704091638279,0.17373642,42419.0,42410.0,0.3]
[1704091638505,0.36873642,42419.0,42410.0,0.53321711]
[1704091639072,0.36973642,42419.0,42410.0,0.53321711]
[1704091639274,0.36873642,42419.0,42410.0,0.53321711]
[1704091639753,0.36873642,42419.0,42410.0,0.53621711]
[1704091639754,0.46873642,42419.0,42410.0,0.53621711]
[1704091639942,0.46873642,42419.0,42410.0,0.53321711]
[1704091640179,0.46973642,42419.0,42410.0,0.53321711]
[1704091640606,0.46873642,42419.0,42410.0,0.53321711]
[1704091640822,0.46973642,42419.0,42410.0,0.53321711]
[1704091641516,0.1,42418.0,42410.0,0.3]
[1704091641934,0.1,42418.0,42409.0,0.4886254]
[1704091642147,0.1,42418.0,42409.0,0.62184251]
[1704091642753,0.1,42418.0,42410.0,0.002]
[1704091642883,0.1,42418.0,42409.0,0.62184251]
[1704091643304,0.1,42418.0,42410.0,0.001]
[1704091643746,0.1,42418.0,42409.0,0.62484251]
[1704091644168,0.1,42418.0,42409.0,0.62684251]
[1704091644389,0.1,42418.0,42409.0,0.62384251]
[1704091644610,0.1,42418.0,42410.0,0.002]
[1704091644819,0.1,42417.0,42410.0,0.002]
[1704091645026,0.1113746,42417.0,42409.0,0.002]
[1704091645238,0.1113746,42416.0,42409.0,0.005]
[1704091645451,0.1113746,42416.0,42409.0,0.002]
[1704091645652,0.1,42415.0,42409.0,0.002]
[1704091645892,0.1,42415.0,42410.0,0.002]
[1704091646116,0.3005,42415.0,42408.0,0.3]
[1704091646347,0.3005,42415.0,42410.0,0.001]
[1704091646784,0.3005,42415.0,42409.0,0.006]
[1704091647003,0.3015,42415.0,42409.0,0.006]
[1704091647206,0.3128746,42415.0,42409.0,0.006]
[1704091647408,0.1678373,42414.0,42409.0,0.006]
[1704091647636,0.2678373,42414.0,42406.0,0.0886254]
[1704091647878,0.2678373,42414.0,42405.0,0.2806254]
[1704091648109,0.2678373,42414.0,42405.0,0.51384251]
[1704091648581,0.2678373,42414.0,42409.0,0.002]
[1704091648808,0.2678373,42414.0,42405.0,0.61384251]
[1704091649017,0.2678373,42414.0,42405.0,0.51984251]
[1704091649231,0.2678373,42414.0,42405.0,0.51384251]
[1704091649429,0.2678373,42414.0,42406.0,0.003]
[1704091649637,0.2678373,42414.0,42409.0,0.002]
[1704091651191,0.2678373,42414.0,42409.0,0.003]
[1704091651374,0.2678373,42414.0,42409.0,0.001]
[1704091652167,0.2678373,42414.0,42409.0,0.003]
[1704091674942,0.1,42413.0,42409.0,0.003]
[1704091675926,0.1,42413.0,42409.0,0.002]
[1704091676562,0.1,42413.0,42405.0,0.3806254]
[1704091676765,0.1,42413.0,42409.0,0.005]
[1704091677436,0.1,42413.0,42409.0,0.002]
[1704091678380,0.1,42413.0,42409.0,0.005]
[1704091681853,0.01,42416.0,42409.0,0.1936254]
[1704091682080,0.61287509,42424.0,42413.0,0.1886254]
[1704091682081,0.1,42423.0,42413.0,0.1886254]
[1704091682324,0.1,42422.0,42413.0,0.24447484]
[1704091682567,0.14189223,42423.0,42414.0,0.50045484]
[1704091683026,0.14189223,42423.0,42415.0,0.05022]
[1704091683276,0.14189223,42423.0,42415.0,0.10606944]
[1704091683522,0.14189223,42423.0,42417.0,0.0886254]
[1704091683767,0.15300387,42425.0,42417.0,0.0886254]
[1704091683981,0.26437847,42425.0,42417.0,0.1368654]
[1704091684506,0.1113746,42425.0,42417.0,0.1368654]
[1704091684750,0.1113746,42425.0,42417.0,0.0886254]
[1704091685655,0.3089746,42425.0,42417.0,0.0886254]
[1704091690283,0.3089746,42425.0,42417.0,0.2735254]
[1704091691186,0.01,42424.0,42417.0,0.2735254]
[1704091696146,0.16381302,42424.0,42417.0,0.2735254]
[1704091697631,0.15381302,42424.0,42417.0,0.2735254]
[1704091697840,0.16381302,42424.0,42417.0,0.2735254]
[1704091698270,0.01,42424.0,42417.0,0.2735254]
[1704091699576,0.16394194,42423.0,42417.0,0.2735254]
[1704091707357,0.01,42424.0,42417.0,0.2735254]
[1704091711641,0.0113746,42423.0,42417.0,0.2735254]
[1704091711847,0.18476044,42423.0,42417.0,0.2735254]
[1704091715497,0.1894,42422.0,42417.0,0.2735254]
[1704091726337,0.1894,42422.0,42417.0,0.32937484]
[1704091726558,0.1894,42422.0,42415.0,0.24844944]
[1704091726559,0.0113746,42420.0,42415.0,0.24844944]
[1704091726975,0.0113746,42420.0,42415.0,0.05584944]
[1704091727892,0.0113746,42420.0,42416.0,0.05584944]
[1704091728810,0.1503684,42420.0,42416.0,0.05584944]
[1704091729023,0.0113746,42419.0,42416.0,0.05584944]
[1704091729238,0.0113746,42419.0,42416.0,0.05884944]
[1704091729666,0.0113746,42419.0,42416.0,0.06084944]
[1704091730103,0.0113746,42419.0,42416.0,0.05884944]
[1704091730326,0.0113746,42419.0,42416.0,0.06184944]
[1704091730539,0.0113746,42419.0,42416.0,0.05884944]
[1704091731806,0.0113746,42419.0,42416.0,0.06284944]
[1704091734296,0.0113746,42419.0,42416.0,0.007]
[1704091737019,0.0113746,42419.0,42416.0,0.06284944]
[1704091737163,0.0113746,42419.0,42416.0,0.007]
[1704091737384,0.0113746,42419.0,42416.0,0.06284944]
[1704091739588,0.0113746,42419.0,42416.0,0.007]
[1704091740277,0.0113746,42419.0,42416.0,0.06284944]
[1704091741106,0.0113746,42419.0,42416.0,0.007]
[1704091744623,0.0113746,42418.0,42416.0,0.007]
[1704091744845,0.0113746,42417.0,42416.0,0.007]
[1704091745258,0.0113746,42417.0,42416.0,0.004]
[1704091745469,0.0113746,42416.0,42411.0,0.24854944]
[1704091745672,0.0113746,42416.0,42411.0,0.05584944]
[1704091747524,0.2156746,42416.0,42410.0,0.43717484]
[1704091747938,0.2156746,42416.0,42411.0,0.006]
[1704091748145,0.2156746,42416.0,42411.0,0.06184944]
[1704091748352,0.2156746,42416.0,42411.0,0.06684944]
[1704091748553,0.2156746,42416.0,42411.0,0.011]
[1704091768647,0.38790423,42416.0,42411.0,0.011]
[1704091773706,0.2156746,42416.0,42411.0,0.011]
[1704091778600,0.2156746,42416.0,42411.0,0.006]
[1704091778794,0.2156746,42416.0,42411.0,0.009]
[1704091779209,0.2156746,42416.0,42411.0,0.006]
[1704091779640,0.2156746,42416.0,42411.0,0.011]
[1704091781495,0.2156746,42416.0,42411.0,0.06684944]
[1704091781703,0.2156746,42416.0,42411.0,0.011]
[1704091783437,0.2156746,42416.0,42411.0,0.06684944]
[1704091789260,0.2156746,42416.0,42412.0,0.05584944]
[1704091790730,0.2156746,42416.0,42412.0,0.05984944]
[1704091791022,0.2156746,42416.0,42412.0,0.06284944]
[1704091793837,0.2156746,42416.0,42412.0,0.007]
[1704091794687,0.2156746,42416.0,42412.0,0.06284944]
[1704091795532,0.2156746,42416.0,42412.0,0.007]
[1704091799676,0.34675793,42416.0,42412.0,0.007]
[1704091800456,0.0113746,42415.0,42412.0,0.007]
[1704091801311,0.0113746,42415.0,42412.0,0.004]
[1704091801523,0.0113746,42415.0,42410.0,0.1]
[1704091801727,0.0113746,42415.0,42412.0,0.005]
[1704091801929,0.0113746,42415.0,42412.0,0.007]
[1704091802753,0.0113746,42415.0,42412.0,0.002]
[1704091803161,0.0113746,42415.0,42412.0,0.003]
[1704091832585,0.00687029,42414.0,42412.0,0.003]
[1704091833407,0.00687029,42414.0,42412.0,0.002]
[1704091834243,0.00687029,42414.0,42412.0,0.005]
[1704091836718,0.0113746,42415.0,42412.0,0.005]
[1704091837125,0.00687029,42414.0,42412.0,0.005]
[1704091837548,0.0113746,42415.0,42412.0,0.005]
[1704091837729,0.00686455,42413.0,42412.0,0.003]
[1704091838040,0.0113746,42415.0,42412.0,0.001]
[1704091838249,0.0113746,42415.0,42412.0,0.003]
[1704091838448,0.00686455,42414.0,42412.0,0.003]
[1704091838915,0.0113746,42415.0,42412.0,0.003]
[1704091839124,0.00686455,42413.0,42412.0,0.003]
[1704091839332,0.0113746,42415.0,42412.0,0.002]
[1704091839543,0.00686933,42413.0,42412.0,0.003]
[1704091839747,0.0113746,42415.0,42412.0,0.003]
[1704091839951,0.00687347,42413.0,42412.0,0.003]
[1704091840154,0.0113746,42415.0,42412.0,0.003]
[1704091840364,0.00687611,42413.0,42412.0,0.003]
[1704091840570,0.0113746,42415.0,42410.0,0.15584944]
[1704091840727,0.00687611,42413.0,42410.0,0.15584944]
[1704091840925,0.00687611,42413.0,42412.0,0.001]
[1704091841144,0.0113746,42415.0,42412.0,0.005]
[1704091841577,0.00687134,42414.0,42412.0,0.005]
[1704091842428,0.00687134,42414.0,42410.0,0.15584944]
[1704091842652,0.00687134,42414.0,42410.0,0.16284944]
[1704091843174,0.00687134,42414.0,42410.0,0.15584944]
[1704091843373,0.00687134,42414.0,42412.0,0.005]
[1704091843589,0.00687134,42414.0,42412.0,0.002]
[1704091843790,0.00687134,42414.0,42410.0,0.15884944]
[1704091844149,0.00687134,42414.0,42410.0,0.16084944]
[1704091845522,0.00687134,42414.0,42410.0,0.25413629]
[1704091846790,0.00687134,42414.0,42410.0,0.16084944]
[1704091848758,0.00687134,42414.0,42410.0,0.15714944]
[1704091849402,0.00687134,42414.0,42410.0,0.15594944]
[1704091849819,0.00687134,42414.0,42410.0,0.24923629]
[1704091851700,0.00687134,42414.0,42410.0,0.15594944]
[1704091852381,0.00687134,42414.0,42410.0,0.24923629]
[1704091852758,0.00687134,42414.0,42411.0,0.09328685]
[1704091854060,0.00687134,42414.0,42411.0,0.003]
[1704091854712,0.00687134,42414.0,42411.0,0.005]
[1704091863017,0.17877184,42413.0,42411.0,0.005]
[1704091863240,0.18564572,42413.0,42411.0,0.005]
[1704091864091,0.18564572,42413.0,42411.0,0.002]
[1704091864308,0.18564572,42413.0,42410.0,0.0951]
[1704091864520,0.18564572,42413.0,42411.0,0.007]
[1704091865131,0.18564572,42413.0,42410.0,0.15094944]
[1704091865335,0.18564572,42413.0,42410.0,0.0981]
[1704091865548,0.18564572,42413.0,42410.0,0.1021]
[1704091865749,0.18564572,42413.0,42410.0,0.0951]
[1704091866158,0.18564572,42413.0,42411.0,0.007]
[1704091867179,0.18564572,42413.0,42411.0,0.003]
[1704091867377,0.18564572,42413.0,42410.0,0.15094944]
[1704091867657,0.18564572,42413.0,42410.0,0.15794944]
[1704091867861,0.18564572,42413.0,42410.0,0.15394944]
[1704091868051,0.18564572,42413.0,42411.0,0.004]
[1704091868824,0.18564572,42413.0,42410.0,0.15394944]
[1704091869114,0.00687388,42413.0,42410.0,0.15494944]
[1704091869735,0.00687388,42413.0,42411.0,0.003]
[1704091870788,0.1984,42414.0,42412.0,0.05584944]
[1704091872078,0.1984,42414.0,42412.0,0.05884944]
[1704091872710,0.1984,42414.0,42412.0,0.06084944]
[1704091873537,0.1984,42414.0,42412.0,0.005]
[1704091874339,0.1984,42414.0,42412.0,0.06084944]
[1704091874597,0.1984,42414.0,42412.0,0.005]
[1704091874990,0.1984,42414.0,42412.0,0.06084944]
[1704091875217,0.1984,42414.0,42412.0,0.005]
[1704091876509,0.00681849,42413.0,42412.0,0.005]
[1704091877587,0.00681849,42413.0,42412.0,0.003]
[1704091877957,0.00681849,42413.0,42412.0,0.007]
[1704091894907,0.00681849,42413.0,42412.0,0.64201858]
[1704091895127,0.0113746,42421.0,42415.0,0.0886254]
[1704091895339,0.0113746,42421.0,42416.0,0.05636662]
[1704091895550,0.0113746,42421.0,42415.0,0.39485202]
[1704091896169,0.0113746,42421.0,42418.0,0.05636662]
[1704091896389,0.15244361,42425.0,42418.0,0.05636662]
[1704091896603,0.1985,42424.0,42419.0,0.11468662]
[1704091896823,0.0113746,42425.0,42420.0,0.05636662]
[1704091897049,0.0113746,42425.0,42421.0,0.05636662]
[1704091897248,0.0113746,42427.0,42421.0,0.05636662]
[1704091897456,0.0113746,42428.0,42421.0,0.05636662]
[1704091897605,0.0113746,42428.0,42421.0,0.1894]
[1704091897815,0.1936,42427.0,42421.0,0.1894]
[1704091898019,0.2049746,42427.0,42421.0,0.1894]
[1704091899087,0.2049746,42427.0,42421.0,0.1914]
[1704091899346,0.1936,42427.0,42421.0,0.1894]
[1704091903225,0.00015,42430.0,42425.0,0.1886254]
[1704091903446,0.00015,42430.0,42426.0,0.05472]
[1704091903660,0.00015,42430.0,42426.0,0.23802]
[1704091903868,0.00015,42430.0,42427.0,0.04938]
[1704091904318,0.00015,42430.0,42429.0,0.1886254]
[1704091904564,0.00015,42430.0,42429.0,0.42184251]
[1704091904802,0.00015,42430.0,42429.0,0.49708251]
[1704091906133,0.00015,42430.0,42429.0,0.53508251]
[1704091906340,0.00015,42430.0,42429.0,0.51608251]
[1704091906540,0.00015,42430.0,42429.0,0.49708251]
[1704091906744,0.00015,42430.0,42429.0,0.51608251]
[1704091906948,0.00015,42430.0,42429.0,0.53508251]
[1704091921146,0.00015,42430.0,42429.0,0.45984251]
[1704091926662,0.00015,42430.0,42429.0,0.52314251]
[1704091929227,0.00015,42430.0,42429.0,0.45984251]
[1704091929637,0.00015,42430.0,42429.0,0.51666251]
[1704091931225,0.00015,42430.0,42429.0,1.46013892]
[1704091931452,0.00342366,42434.0,42433.0,0.1886254]
[1704091931657,0.00342366,42434.0,42433.0,0.72184251]
[1704091931864,0.00342366,42434.0,42433.0,1.49304129]
[1704091932074,0.00342366,42434.0,42433.0,1.54896536]
[1704091932280,0.00342366,42434.0,42433.0,1.64418536]
[1704091932499,0.00342366,42434.0,42433.0,1.65826129]
[1704091932952,0.00342366,42434.0,42433.0,1.59204129]
[1704091935557,0.00342366,42434.0,42433.0,1.68570129]
[1704091937581,0.00342366,42434.0,42433.0,1.74162536]
[1704091937809,0.00342366,42434.0,42433.0,2.03457096]
[1704091938063,0.00342366,42434.0,42433.0,1.92271228]
[1704091938251,0.00342366,42434.0,42433.0,2.07249538]
[1704091938459,0.00342366,42434.0,42433.0,2.04458427]
[1704091938664,0.00342366,42434.0,42433.0,2.07249538]
[1704091939701,0.00342366,42434.0,42433.0,2.10101806]
[1704091939906,0.00342366,42434.0,42433.0,2.10115089]
[1704091940533,0.00342366,42434.0,42433.0,1.96123496]
[1704091945083,0.008,42439.0,42438.0,0.4886254]
[1704091945315,0.008,42439.0,42438.0,1.83813228]
[1704091945519,0.008,42439.0,42438.0,2.18235363]
[1704091945716,0.008,42439.0,42438.0,2.04237228]
[1704091946803,0.008,42439.0,42438.0,2.04537228]
[1704091947012,0.008,42439.0,42438.0,2.04937228]
[1704091947229,0.008,42439.0,42438.0,2.04537228]
[1704091947642,0.008,42439.0,42438.0,2.06337228]
[1704091947843,0.008,42439.0,42438.0,2.06037228]
[1704091948329,0.008,42439.0,42438.0,2.07837228]
[1704091949328,0.008,42439.0,42438.0,2.01832548]
[1704091949552,0.008,42439.0,42438.0,1.91620548]
[1704091950390,0.008,42439.0,42438.0,1.76182119]
[1704091950596,0.008,42439.0,42438.0,1.7618111]
[1704091951167,0.008,42439.0,42438.0,1.76180852]
[1704091952435,0.008,42439.0,42438.0,1.64985228]
[1704091952832,0.008,42439.0,42438.0,1.73380851]
[1704091953048,0.008,42439.0,42438.0,1.51284129]